fUSD/lending_fUSD_20240719
["ID","MTS","AMOUNT","RATE_DAILY","PERIOD"]
[332612298,1721347209467,150.0,0.00010959,2]
[332612299,1721347209488,4.57,0.00010959,2]
[332612300,1721347220051,150.0,0.00010959,2]
[332612301,1721347220074,150.0,0.00010959,2]
[332612302,1721347220096,150.0,0.00010959,2]
[332612303,1721347220152,150.0,0.00010959,2]
[332612304,1721347220254,150.0,0.00010959,2]
[332612305,1721347220292,22.86,0.00010959,2]
[332612344,1721347832109,-305.79,0.00011195,2]
[332612345,1721347832118,-242.040985,0.00012439,2]
[332612346,1721347832128,-109.78972284,0.00012483,2]
[332612347,1721347832163,-1258.64027716,0.00012483,2]
[332612348,1721347832173,-167.06,0.00012502,2]
[332612349,1721347832183,-150.0,0.00012505,2]
[332612350,1721347832195,-1310.84510849,0.00012543,2]
[332612351,1721347832207,-7446.10655313,0.00012543,2]
[332612352,1721347832218,-15133.04833838,0.00012543,2]
[332612353,1721347832229,-500.0,0.0001262,2]
[332612354,1721347832238,-250.0,0.00012795,2]
[332612355,1721347832249,-124.83610141,0.00012998,2]
[332612356,1721347832272,-210.48920169,0.00012998,2]
[332612357,1721347832282,-173.15774171,0.00012999,2]
[332612358,1721347832291,-306.02874822,0.00013066,2]
[332612359,1721347832301,-21.92430838,0.00013133,2]
[332612360,1721347832313,-466.35176549,0.00013133,2]
[332612361,1721347832322,-250.0,0.00013199,2]
[332612362,1721347832332,-1009.3950199,0.00013231,2]
[332612363,1721347832341,-500.0,0.00013232,2]
[332612364,1721347832351,-366.83842223,0.0001324,2]
[332612365,1721347832363,-525.18477963,0.0001324,2]
[332612366,1721347832372,-168.77,0.00013241,2]
[332612367,1721347832382,-200.0,0.00013241,2]
[332612368,1721347832391,-1551.79,0.00013295,2]
[332612369,1721347832402,-387.94433721,0.00013378,2]
[332612370,1721347832411,-305.79,0.00013459,2]
[332612371,1721347832420,-5125.95,0.00013477,2]
[332612372,1721347832430,-150.0,0.00013483,2]
[332612373,1721347832439,-30730.10480654,0.00013484,2]
[332612376,1721347832455,-14504.33629346,0.00013484,2]
[332612377,1721347832464,-347.68317165,0.00013577,2]
[332612378,1721347832474,-158.67,0.00013578,2]
[332612379,1721347832483,-155.72385129,0.00013579,2]
[332612380,1721347832493,-179.99,0.000136,2]
[332612381,1721347832502,-2128.38,0.000136,2]
[332612382,1721347832512,-499.99,0.000136,2]
[332612383,1721347832523,-461.90632071,0.000136,2]
[332612384,1721347832532,-11021.47,0.00013699,2]
[332612385,1721347832542,-789.75,0.00013699,2]
[332612386,1721347832551,-2847.42,0.00013699,2]
[332612387,1721347832561,-500.0,0.00013699,2]
[332612388,1721347832571,-250.0,0.00013699,2]
[332612389,1721347832580,-1163.4179,0.000137,2]
[332612390,1721347832590,-155.0,0.0001372,2]
[332612391,1721347832600,-227.41308538,0.0001372,2]
[332612392,1721347832609,-11491.40461689,0.0001379,2]
[332612393,1721347832618,-247.46243389,0.00013799,2]
[332612394,1721347832628,-306.49459693,0.00013799,2]
[332612395,1721347832638,-4106.95643941,0.00013799,2]
[332612396,1721347832647,-1000.0,0.000138,2]
[332612397,1721347832660,-219.6763,0.000138,2]
[332612398,1721347832669,-100000.0,0.000138,2]
[332612399,1721347832678,-1699.96825437,0.000138,2]
[332612400,1721347832688,-1000.0,0.000138,2]
[332612401,1721347832698,-173.31,0.00013842,2]
[332612402,1721347832707,-805.42887238,0.00013859,2]
[332612403,1721347832717,-251334.0,0.0001386,2]
[332612404,1721347832727,-6699.60089959,0.00013899,2]
[332612405,1721347832736,-500.0,0.000139,2]
[332612406,1721347832746,-294.6914,0.000139,2]
[332612407,1721347832756,-179.18306571,0.000139,2]
[332612408,1721347832765,-3762.1038,0.000139,2]
[332612409,1721347832775,-3245.5692,0.000139,2]
[332612410,1721347832784,-174.90879013,0.000139,2]
[332612411,1721347832793,-290.2,0.0001398,2]
[332612412,1721347832803,-868.59057618,0.00013989,2]
[332612413,1721347832812,-7894.50618587,0.0001399,2]
[332612414,1721347832822,-177.15379087,0.0001399,2]
[332612415,1721347832831,-11918.86317173,0.00014,2]
[332612416,1721347832844,-335.92939992,0.00014,2]
[332612417,1721347832856,-348.89010204,0.00014,2]
[332612418,1721347832869,-291.505,0.00014,2]
[332612419,1721347832881,-279.69657276,0.00014,2]
[332612420,1721347832892,-682.85177341,0.00014,2]
[332612421,1721347832905,-522.58091288,0.00014,2]
[332612422,1721347832918,-651.54,0.00014,2]
[332612423,1721347832931,-819.4565,0.00014,2]
[332612424,1721347832943,-818.82444517,0.00014,2]
[332612425,1721347832955,-757.13168339,0.00014,2]
[332612426,1721347832966,-10227.07321666,0.00014,2]
[332612427,1721347832977,-350.0,0.00014,2]
[332612431,1721347838167,-290.2,0.0001399,2]
[332612432,1721347838177,-119.99142791,0.0001399,2]
[332612556,1721347840139,-170.20857209,0.0001399,2]
[332612558,1721347840148,-290.2,0.0001399,2]
[332612560,1721347840160,-290.2,0.0001399,2]
[332612562,1721347840170,-290.2,0.0001399,2]
[332612564,1721347840179,-290.2,0.0001399,2]
[332612566,1721347840188,-290.2,0.0001399,2]
[332612568,1721347840198,-290.2,0.0001399,2]
[332612570,1721347840210,-88.59142791,0.0001399,2]
[332612587,1721347840362,-201.60857209,0.0001399,2]
[332612589,1721347840371,-348.63816936,0.00014,2]
[332612885,1721347843689,-3397.93999999,0.00014,2]
[332612888,1721347843700,-701.11,0.00014,2]
[332612890,1721347843711,-382858.30162102,0.00014,2]
[332612899,1721347846158,-5829.88847547,0.000137,2]
[332613016,1721348353345,-322.55,0.00011869,2]
[332613017,1721348353369,-286.181922,0.00012511,2]
[332613018,1721348353393,-250.0,0.0001269,2]
[332613019,1721348353418,-11541.268078,0.0001275,2]
[332613020,1721348490256,150.0,0.00010786,2]
[332613021,1721348490279,150.0,0.00010786,2]
[332613022,1721348490301,6.42,0.00010786,2]
[332613024,1721348808288,150.0,0.00010959,2]
[332613025,1721348808314,6.43,0.00010959,2]
[332613026,1721348818764,150.0,0.00010959,2]
[332613027,1721348818785,150.0,0.00010959,2]
[332613028,1721348818807,150.0,0.00010959,2]
[332613029,1721348818828,150.0,0.00010959,2]
[332613030,1721348818849,150.0,0.00010959,2]
[332613031,1721348818870,32.19,0.00010959,2]
[332613061,1721349032301,-527.06338007,0.00011816,2]
[332613062,1721349032316,-145.33661993,0.00011816,2]
[332613063,1721349032329,-200.98,0.00011953,2]
[332613064,1721349032342,-558.0,0.00012325,2]
[332613065,1721349032354,-558.0,0.00012329,2]
[332613066,1721349032367,-442.32867431,0.00012332,2]
[332613067,1721349032403,-115.67132569,0.00012332,2]
[332613068,1721349032415,-558.0,0.00012335,2]
[332613069,1721349032428,-171.72867426,0.00012337,2]
[332613070,1721349032462,-128.27132574,0.00012337,2]
[332613071,1721349032475,-558.0,0.00012338,2]
[332613072,1721349032488,-558.0,0.00012342,2]
[332613073,1721349032500,-558.0,0.00012345,2]
[332613074,1721349032514,-558.0,0.00012348,2]
[332613075,1721349032526,-558.0,0.00012351,2]
[332613076,1721349032539,-558.0,0.00012354,2]
[332613077,1721349032552,-23900.0,0.00012357,2]
[332613078,1721349032565,-558.0,0.00012358,2]
[332613079,1721349032577,-558.0,0.00012361,2]
[332613080,1721349032590,-558.0,0.00012364,2]
[332613081,1721349032603,-558.0,0.00012367,2]
[332613082,1721349032615,-558.0,0.00012371,2]
[332613083,1721349032627,-558.0,0.00012374,2]
[332613084,1721349032640,-558.0,0.00012377,2]
[332613085,1721349032653,-558.0,0.0001238,2]
[332613086,1721349032666,-558.0,0.00012384,2]
[332613087,1721349032678,-155.0,0.00012386,2]
[332613088,1721349032690,-558.0,0.00012387,2]
[332613089,1721349032704,-356.53488145,0.00012391,2]
[332613090,1721349032716,-150.0,0.0001254,2]
[332613091,1721349032729,-200.0,0.00012551,2]
[332613092,1721349032742,-500.0,0.00012564,2]
[332613093,1721349032755,-936.14,0.00012574,2]
[332613094,1721349032769,-4654.64,0.00012588,2]
[332613095,1721349032782,-499.99,0.00012588,2]
[332613096,1721349032795,-250.0,0.00012601,2]
[332613097,1721349032807,-347.91,0.00012651,2]
[332613098,1721349032820,-237.29,0.00012681,3]
[332613099,1721349032833,-280.13964654,0.00012694,2]
[332613100,1721349032845,-400.0,0.00012695,2]
[332613101,1721349032858,-641.60594563,0.00012696,2]
[332613102,1721349032871,-155.0,0.00012703,2]
[332613103,1721349032883,-4654.62,0.00012704,2]
[332613104,1721349032895,-150.99,0.00012704,2]
[332613106,1721349032907,-240.73383763,0.00012748,2]
[332613108,1721349032920,-179.99,0.00012749,2]
[332613110,1721349032933,-155.0,0.00012749,2]
[332613111,1721349032946,-16022.95,0.0001275,2]
[332613112,1721349032958,-1627.9,0.0001275,2]
[332613113,1721349032971,-418.67,0.0001275,2]
[332613114,1721349032983,-759.04945973,0.00013049,2]
[332613115,1721349032996,-306.42,0.0001305,2]
[332613116,1721349033008,-304.93530355,0.00013066,2]
[332613117,1721349033021,-235.82956703,0.00013067,2]
[332613118,1721349033034,-366.58954343,0.00013068,2]
[332613119,1721349033047,-314.00445469,0.00013068,2]
[332613120,1721349033060,-19655.44717849,0.00013132,2]
[332613121,1721349033073,-530.54780873,0.00013165,2]
[332613122,1721349033088,-431.70678588,0.00013378,2]
[332613123,1721349033101,-1069.94736295,0.00013398,2]
[332613124,1721349033114,-691.82126077,0.00013499,2]
[332613125,1721349033128,-303.66616832,0.000135,2]
[332613126,1721349033141,-420.0,0.00013539,2]
[332613127,1721349033154,-488.66646635,0.00013579,2]
[332613128,1721349033167,-335.86599298,0.0001358,2]
[332613129,1721349033180,-255.0,0.0001363,2]
[332613130,1721349033192,-37980.46304271,0.00013689,2]
[332613131,1721349033205,-341.8,0.00013699,2]
[332613132,1721349033218,-2116.04,0.00013699,2]
[332613133,1721349033231,-200.0,0.00013699,2]
[332613134,1721349033244,-250.0,0.00013699,2]
[332613135,1721349033256,-2751.0,0.00013699,2]
[332613136,1721349033268,-171.25,0.00013699,2]
[332613137,1721349033280,-1288.64771064,0.00013699,2]
[332613138,1721349033292,-49796.88432453,0.000137,2]
[332613139,1721349033302,-310.0,0.000137,2]
[332613140,1721349033312,-1388.47743863,0.0001372,2]
[332613141,1721349033321,-196.37015947,0.0001372,2]
[332613142,1721349033331,-300.0,0.00013771,2]
[332613143,1721349033342,-168.6,0.00013772,2]
[332613144,1721349033353,-10406.19654663,0.0001379,2]
[332613145,1721349033363,-3712.15847983,0.00013799,2]
[332613146,1721349033373,-385.10220627,0.00013805,2]
[332613147,1721349033383,-75877.0,0.0001386,2]
[332613148,1721349033393,-3325.0,0.000139,2]
[332613149,1721349033403,-195.142,0.000139,2]
[332613150,1721349033412,-1000.0,0.000139,2]
[332613151,1721349033422,-1620.1574,0.000139,2]
[332613152,1721349033432,-1128.2607,0.000139,2]
[332613153,1721349033441,-216.52962961,0.000139,2]
[332613154,1721349033451,-169.24846796,0.000139,2]
[332613155,1721349033462,-266.342242,0.00013973,2]
[332613156,1721349033471,-1687.18838099,0.0001399,2]
[332613157,1721349033481,-159924.670328,0.0001399,2]
[332613158,1721349033993,-150.06982541,0.0001399,2]
[332613159,1721349034027,-155.0,0.00013996,2]
[332613160,1721349034062,-639.131448,0.00013999,2]
[332613161,1721349034080,-71204.34814832,0.00014,2]
[332613162,1721349034102,-1622.15927746,0.00014,2]
[332613163,1721349034113,-16606.26636758,0.00014,2]
[332613164,1721349034127,-5132.47009967,0.00014,2]
[332613167,1721349038324,-265.48,0.0001399,2]
[332613168,1721349038336,-265.48,0.0001399,2]
[332613169,1721349038346,-265.48,0.0001399,2]
[332613170,1721349038357,-265.48,0.0001399,2]
[332613171,1721349038367,-114.79115338,0.0001399,2]
[332613172,1721349038379,-150.68884662,0.0001399,2]
[332613173,1721349038388,-222.26027015,0.0001399,2]
[332613174,1721349038423,-43.21972985,0.0001399,2]
[332613175,1721349038433,-265.48,0.0001399,2]
[332613176,1721349038443,-164.63863275,0.0001399,2]
[332613177,1721349038566,-100.84136725,0.0001399,2]
[332613178,1721349038575,-265.48,0.0001399,2]
[332613179,1721349038585,-234.17863275,0.0001399,2]
[332613180,1721349038628,-31.30136725,0.0001399,2]
[332613181,1721349038638,-265.48,0.0001399,2]
[332613182,1721349038648,-265.48,0.0001399,2]
[332613183,1721349038657,-265.48,0.0001399,2]
[332613184,1721349038667,-265.48,0.0001399,2]
[332613185,1721349038676,-265.48,0.0001399,2]
[332613186,1721349038686,-265.48,0.0001399,2]
[332613187,1721349038696,-265.48,0.0001399,2]
[332613188,1721349038707,-265.48,0.0001399,2]
[332613189,1721349038716,-265.48,0.0001399,2]
[332613190,1721349038728,-265.48,0.0001399,2]
[332613191,1721349038738,-265.48,0.0001399,2]
[332613192,1721349038747,-265.48,0.0001399,2]
[332613193,1721349038757,-265.48,0.0001399,2]
[332613194,1721349038766,-157.85540512,0.00013997,2]
[332613196,1721349038775,-155692.10322763,0.00014,2]
[332613202,1721349038812,-1798.96459306,0.00014,2]
[332613228,1721349039060,-1720.75393469,0.00014,2]
[332613295,1721349040372,-32332.34669367,0.00014,2]
[332613296,1721349040384,-58082.5718853,0.00014,2]
[332613297,1721349040394,-7256.8581422,0.00014,2]
[332613298,1721349040414,-1114.04420081,0.00014,2]
[332613299,1721349040450,-3063.7,0.00014,2]
[332613300,1721349040462,-1661.8907034,0.00014,2]
[332613301,1721349040473,-825.15284921,0.00014,2]
[332613302,1721349040513,-4661.7770805,0.00014,2]
[332613303,1721349040525,-600.96056067,0.00014,2]
[332613304,1721349040537,-1465.41185795,0.00014,2]
[332613305,1721349040548,-1956.59488756,0.00014,2]
[332613306,1721349040906,-1950.0,0.00014,2]
[332613307,1721349041034,-158180.79394596,0.00014,2]
[332613562,1721349043671,-3034.69999998,0.00014,2]
[332613570,1721349043737,-507.53028692,0.00014,2]
[332613572,1721349043748,-276.02726063,0.00014,2]
[332613595,1721349043972,-357.69482547,0.00014,2]
[332613950,1721349047868,-279.51260892,0.0001386,2]
[332613951,1721349047879,-712.46780598,0.0001386,2]
[332613952,1721349048160,-362.68407531,0.0001386,2]
[332613953,1721349048174,-622.19760694,0.0001386,2]
[332613954,1721349048314,-3548.13790285,0.0001386,2]
[332613955,1721349048325,-319.565724,0.00013999,2]
[332613956,1721349048336,-63.11000941,0.00014,2]
[332613957,1721349048347,-489.10595125,0.00014,2]
[332613958,1721349048386,-429.34971866,0.00014,2]
[332613962,1721349568824,150.0,0.0001084,2]
[332613963,1721349568847,139.86,0.0001084,2]
[332613972,1721349831999,19576.47809136,0.00025,120]
[332613985,1721350153807,283.19,0.00010485,2]
[332613995,1721350231554,-2641.77609844,0.00011666,2]
[332613996,1721350231565,-177.03868997,0.00011695,2]
[332613997,1721350231575,-2641.77609844,0.00011695,2]
[332613998,1721350231584,-2868.80258046,0.00011735,2]
[332613999,1721350231594,-485.13,0.0001232,2]
[332614000,1721350231603,-155.46196403,0.00012458,2]
[332614001,1721350231613,-320.0,0.00012459,2]
[332614002,1721350231625,-155.0,0.0001254,2]
[332614003,1721350231637,-12408.73,0.0001254,2]
[332614004,1721350231647,-250.0,0.0001259,2]
[332614005,1721350231657,-202.98839586,0.00012607,2]
[332614006,1721350231666,-437.64,0.00012608,2]
[332614007,1721350231676,-168.6,0.00012613,2]
[332614008,1721350231686,-748.91,0.00012626,2]
[332614009,1721350231697,-782.57,0.00012626,2]
[332614010,1721350231707,-158.54494384,0.00012681,2]
[332614011,1721350231717,-155.0,0.00012696,2]
[332614012,1721350231727,-155.0,0.00012748,2]
[332614013,1721350231736,-401.57927817,0.00012748,2]
[332614014,1721350231746,-260.72525824,0.00012748,2]
[332614015,1721350231755,-283.19,0.00012749,2]
[332614016,1721350231765,-499.99,0.00012838,2]
[332614017,1721350231774,-3152.13,0.00012838,2]
[332614018,1721350231783,-2761.3726,0.00013183,2]
[332614019,1721350231792,-155.31471181,0.00013283,2]
[332614020,1721350231802,-222.85,0.00013391,2]
[332614021,1721350231811,-329.35655342,0.00013398,2]
[332614022,1721350231821,-1388.47743863,0.000136,2]
[332614023,1721350231830,-150.0,0.00013698,2]
[332614024,1721350231841,-164.27,0.00013699,2]
[332614025,1721350231851,-1162.66,0.00013699,2]
[332614026,1721350231861,-250.0,0.00013699,2]
[332614027,1721350231870,-171.25,0.00013699,2]
[332614028,1721350231880,-1058.02,0.00013699,2]
[332614029,1721350231890,-379.65177583,0.00013756,2]
[332614030,1721350231900,-400.0,0.000138,5]
[332614031,1721350231909,-220.24,0.0001389,3]
[332614032,1721350231919,-177.36793551,0.000139,2]
[332614033,1721350231928,-166.0905149,0.000139,2]
[332614034,1721350231937,-9365.57689203,0.000139,2]
[332614035,1721350231948,-800.0,0.000139,5]
[332614036,1721350231957,-3363.31790991,0.000139,2]
[332614037,1721350231967,-306.49459693,0.000139,2]
[332614038,1721350231976,-3775.0409,0.000139,2]
[332614039,1721350231986,-150.06982542,0.0001399,2]
[332614040,1721350231996,-223.73,0.0001399,2]
[332614041,1721350232006,-223.73,0.0001399,2]
[332614042,1721350232015,-223.73,0.0001399,2]
[332614043,1721350232025,-223.73,0.0001399,2]
[332614044,1721350232035,-223.73,0.0001399,2]
[332614045,1721350232045,-223.73,0.0001399,2]
[332614047,1721350232054,-223.73,0.0001399,2]
[332614049,1721350232064,-223.73,0.0001399,2]
[332614050,1721350232074,-223.73,0.0001399,2]
[332614051,1721350232084,-223.73,0.0001399,2]
[332614052,1721350232094,-223.73,0.0001399,2]
[332614053,1721350232103,-2273.61717369,0.00013997,2]
[332614054,1721350232113,-159.782862,0.00013999,2]
[332614055,1721350232122,-784.0,0.00014,2]
[332614056,1721350232133,-13701.75812011,0.00014,2]
[332614057,1721350232145,-29839.07542776,0.00014,2]
[332614058,1721350232367,-286.18192272,0.00014,2]
[332614059,1721350232379,-1639.59994948,0.00014,2]
[332614060,1721350232409,-396.24892489,0.00014,2]
[332614061,1721350232421,-725099.02180095,0.00014,2]
[332614064,1721350237482,-1387.733275,0.00011577,2]
[332614065,1721350237491,-162.40005167,0.000139,2]
[332614066,1721350237681,-72.07850582,0.000139,2]
[332614067,1721350237691,-258.92149418,0.00014,2]
[332614068,1721350237764,-497.07850582,0.00014,2]
[332614069,1721350237773,-53.02150368,0.00014,2]
[332614070,1721350237784,-889.5174802,0.00014,2]
[332614137,1721350239542,-62278.5135305,0.00014,2]
[332614138,1721350239748,-81465.69818906,0.00014,2]
[332614139,1721350239799,-2834.67497307,0.00014,2]
[332614140,1721350239811,-308.39200581,0.00014,2]
[332614141,1721350239831,-1606.0,0.00014,2]
[332614348,1721350242718,-4607.52662093,0.00014,2]
[332614351,1721350243679,-346.20945934,0.00014,2]
[332614352,1721350243693,-740.76734568,0.00014,2]
[332614360,1721350245542,-275.00001556,0.00014,2]
[332614361,1721350245679,-21355.47330686,0.00014,2]
[332614362,1721350245691,-13690.82341382,0.00014,2]
[332614363,1721350245714,-301.33416204,0.00014,2]
[332614364,1721350245726,-522.93853237,0.00014,2]
[332614365,1721350245773,-6723.95799994,0.00014,2]
[332614368,1721350245854,-3404.49953242,0.00014,2]
[332614395,1721351228588,150.0,0.00011105,2]
[332614396,1721351228608,150.0,0.00011105,2]
[332614397,1721351228628,150.0,0.00011105,2]
[332614398,1721351228647,150.0,0.00011105,2]
[332614399,1721351228668,150.0,0.00011105,2]
[332614400,1721351228690,150.0,0.00011105,2]
[332614401,1721351228710,150.0,0.00011105,2]
[332614402,1721351228731,150.0,0.00011105,2]
[332614403,1721351228752,150.0,0.00011105,2]
[332614404,1721351228772,150.0,0.00011105,2]
[332614405,1721351228792,55.23375712,0.00011105,2]
[332614406,1721351280725,499.999999,0.0002,30]
[332614412,1721351372872,157.071907,0.00024,62]
[332614427,1721351432073,-4366.9760985,0.00011202,2]
[332614428,1721351432088,-359.09,0.00011238,2]
[332614429,1721351432098,-164.89653501,0.00011302,2]
[332614430,1721351432108,-250.0,0.0001254,2]
[332614431,1721351432120,-164.89653501,0.00012551,2]
[332614432,1721351432130,-1000.0,0.000129,2]
[332614433,1721351432141,-300.0,0.00012928,2]
[332614434,1721351432151,-841.46402693,0.00012929,2]
[332614435,1721351432821,-559.75762178,0.00012929,2]
[332614436,1721351432833,-3621.10835129,0.00012929,2]
[332614437,1721351432842,-346.16,0.00012938,2]
[332614438,1721351432852,-200.0,0.00012938,2]
[332614439,1721351432862,-250.0,0.00013074,2]
[332614440,1721351432873,-150.0,0.0001308,2]
[332614441,1721351432883,-23900.0,0.00013081,2]
[332614442,1721351432892,-499.99,0.00013081,2]
[332614443,1721351432902,-150.99,0.00013081,2]
[332614444,1721351432911,-180.0,0.00013233,2]
[332614445,1721351432921,-1004.35,0.00013233,2]
[332614446,1721351432931,-359.09,0.00013502,2]
[332614447,1721351432942,-250.0,0.00013699,2]
[332614448,1721351432951,-171.25,0.00013699,2]
[332614449,1721351432961,-934.71,0.00013699,2]
[332614450,1721351432971,-164.89653501,0.000138,2]
[332614451,1721351432980,-8544.81229998,0.000138,2]
[332614452,1721351432990,-1716.7885,0.000138,2]
[332614453,1721351433003,-3107.53711989,0.000138,2]
[332614454,1721351433013,-500.0,0.00013887,2]
[332614455,1721351433024,-500.0,0.00013888,2]
[332614456,1721351433033,-500.0,0.00013888,2]
[332614457,1721351433043,-200.0,0.00013888,2]
[332614458,1721351433053,-820.83,0.0001389,3]
[332614459,1721351433063,-283779.3372,0.000139,2]
[332614460,1721351433074,-4287.7009,0.000139,2]
[332614461,1721351433084,-201.012984,0.000139,2]
[332614462,1721351433094,-308.65577954,0.000139,2]
[332614463,1721351433104,-485.43834991,0.0001399,2]
[332614464,1721351433114,-150.06982542,0.0001399,2]
[332614465,1721351433126,-4265.010217,0.00013996,2]
[332614466,1721351433136,-430.0692822,0.00013996,2]
[332614467,1721351433146,-57991.8518822,0.00013996,2]
[332614468,1721351433156,-159.78286199,0.00013999,2]
[332614469,1721351433166,-217852.10347027,0.00014,2]
[332614470,1721351433208,-5100.0,0.00014,2]
[332614471,1721351433221,-37141.56535353,0.00014,2]
[332614472,1721351433231,-3000.0,0.00014,2]
[332614473,1721351433242,-64224.62644247,0.00014,2]
[332614474,1721351433262,-360.246502,0.00014,2]
[332614475,1721351433274,-2597.6944,0.00014,2]
[332614476,1721351433286,-3144.07254094,0.00014,2]
[332614477,1721351433298,-336.95305069,0.00014,2]
[332614487,1721351437697,-205.49,0.0001399,2]
[332614488,1721351437706,-205.49,0.0001399,2]
[332614489,1721351437715,-205.49,0.0001399,2]
[332614490,1721351437726,-205.49,0.0001399,2]
[332614491,1721351437735,-205.49,0.0001399,2]
[332614492,1721351437744,-162.25372416,0.00013996,2]
[332614493,1721351437932,-43.23627584,0.00013996,2]
[332614494,1721351437942,-258.28801851,0.00014,2]
[332614553,1721351439839,-312.3160075,0.00014,2]
[332614554,1721351439850,-138572.23303789,0.00014,2]
[332614555,1721351439860,-3464.2135044,0.00014006,2]
[332614556,1721351439869,-320.0,0.00014016,2]
[332614557,1721351439880,-164.07250622,0.00014177,2]
[332614558,1721351439890,-420.0,0.00014178,2]
[332614559,1721351439900,-300.0,0.00014191,2]
[332614560,1721351439910,-255.0,0.00014192,2]
[332614561,1721351439919,-1000.0,0.00014512,2]
[332614562,1721351439928,-346.16,0.00014555,2]
[332614563,1721351439937,-8544.81229992,0.00014589,2]
[332614564,1721351439946,-3107.53711986,0.00014589,2]
[332614565,1721351439956,-406.6223,0.00014904,2]
[332614566,1721351439966,-1286.76187843,0.00014988,2]
[332614567,1721351439975,-3659.03968495,0.00015,2]
[332614568,1721351439985,-150.0,0.00015,2]
[332614569,1721351439995,-171.25,0.00015068,2]
[332614570,1721351440009,-8544.81229992,0.00015378,2]
[332614571,1721351440018,-3107.53711986,0.00015378,2]
[332614572,1721351440027,-255.0,0.00015395,2]
[332614573,1721351440038,-180.0,0.00015439,2]
[332614574,1721351440047,-168.44,0.00015534,2]
[332614575,1721351440057,-329.35655342,0.00015549,2]
[332614576,1721351440066,-587.0,0.0001555,2]
[332614577,1721351440075,-320.0,0.00015573,2]
[332614578,1721351440088,-19854.52293971,0.000156,2]
[332614579,1721351440098,-201.01298396,0.0001565,2]
[332614580,1721351440107,-359.09,0.00015766,2]
[332614581,1721351440117,-300.0,0.000159,5]
[332614582,1721351440127,-1388.47743863,0.00015999,2]
[332614583,1721351440136,-5000.0,0.00016,2]
[332614584,1721351440145,-5778.47,0.00016116,2]
[332614585,1721351440154,-1000.0,0.00016125,2]
[332614586,1721351440163,-268.20670839,0.00016127,2]
[332614587,1721351440173,-263.75418329,0.00016128,2]
[332614588,1721351440183,-205.49,0.00016157,2]
[332614589,1721351440192,-288.53700053,0.00016166,2]
[332614590,1721351440202,-8544.81229992,0.00016167,2]
[332614591,1721351440211,-3107.53711986,0.00016167,2]
[332614592,1721351440220,-346.16,0.00016172,2]
[332614593,1721351440230,-366.12690226,0.00016209,2]
[332614594,1721351440239,-890.40343046,0.0001621,2]
[332614595,1721351440248,-890.40343046,0.0001639,2]
[332614596,1721351440258,-5823.0,0.00016391,2]
[332614597,1721351440267,-1667.0,0.00016391,2]
[332614598,1721351440277,-5117.0,0.00016391,2]
[332614599,1721351440286,-1201.0,0.00016391,2]
[332614600,1721351440296,-38322.0,0.00016391,2]
[332614601,1721351440305,-437.169,0.00016391,2]
[332614602,1721351440314,-304.62275169,0.00016437,2]
[332614603,1721351440323,-2645.56,0.00016438,2]
[332614604,1721351440333,-171.25,0.00016438,2]
[332614605,1721351440342,-1501.0,0.000167,2]
[332614606,1721351440352,-8544.81229992,0.00016956,2]
[332614608,1721351440361,-3107.53711986,0.00016956,2]
[332614610,1721351440371,-200.0,0.00017,2]
[332614612,1721351440381,-320.0,0.00017131,2]
[332614614,1721351440391,-201.01298396,0.000174,2]